fUST/lending_fUST_20260610
["ID","MTS","AMOUNT","RATE_DAILY","PERIOD"]
[424690183,1781052645000,-150.32,0.00020362,2]
[424690203,1781052645000,-1917.3001,0.000204,2]
[424690190,1781052645000,-1914.5077,0.000204,2]
[424690197,1781052645000,-1820.09,0.000204,2]
[424690194,1781052645000,-1820.093,0.000204,2]
[424690195,1781052645000,-1820.093,0.000204,2]
[424690192,1781052645000,-1565.3345,0.000204,2]
[424690199,1781052645000,-247.02766803,0.000204,2]
[424690207,1781052645000,-1224.19,0.000204,2]
[424690208,1781052645000,-151.0,0.000204,4]
[424690205,1781052645000,-1224.19,0.000204,2]
[424690210,1781052645000,-150.32,0.00020412,2]
[424690224,1781052645000,-150.32,0.00020512,2]
[424690212,1781052645000,-156.07,0.00020446,2]
[424690160,1781052645000,-2279.89,0.00020273,2]
[424690187,1781052645000,-151.25,0.00020396,2]
[424690158,1781052645000,-500.0,0.00020273,2]
[424690130,1781052645000,-500.0,0.00020273,2]
[424690154,1781052645000,-500.0,0.00020273,2]
[424690117,1781052645000,-2879.64,0.00020273,2]
[424690119,1781052645000,-174.57294698,0.00020273,2]
[424690104,1781052645000,-500.0,0.00020273,2]
[424690110,1781052645000,-785.88,0.00020273,2]
[424690112,1781052645000,-1669.76,0.00020273,2]
[424690108,1781052645000,-3786.4,0.00020273,2]
[424690123,1781052645000,-500.0,0.00020273,2]
[424690114,1781052645000,-8914.33,0.00020273,2]
[424690115,1781052645000,-377.72400027,0.00020273,2]
[424690121,1781052645000,-500.0,0.00020273,2]
[424690106,1781052645000,-500.0,0.00020273,2]
[424690124,1781052645000,-500.0,0.00020273,2]
[424690126,1781052645000,-2158.62,0.00020273,2]
[424690128,1781052645000,-802.86,0.00020273,2]
[424690222,1781052645000,-151.32932327,0.00020496,2]
[424690135,1781052645000,-401.57411493,0.00020273,2]
[424690132,1781052645000,-500.0,0.00020273,2]
[424690141,1781052645000,-699.54,0.00020273,2]
[424690134,1781052645000,-1513.01,0.00020273,2]
[424690139,1781052645000,-2954.84,0.00020273,2]
[424690137,1781052645000,-1546.08,0.00020273,2]
[424690149,1781052645000,-4883.8,0.00020273,2]
[424690143,1781052645000,-500.0,0.00020273,2]
[424690150,1781052645000,-500.0,0.00020273,2]
[424690147,1781052645000,-1935.77,0.00020273,2]
[424690145,1781052645000,-2307.46,0.00020273,2]
[424690152,1781052645000,-3911.14,0.00020273,2]
[424690156,1781052645000,-5195.56,0.00020273,2]
[424690228,1781052645000,-156.07,0.00020546,2]
[424690201,1781052645000,-1650.13,0.000204,2]
[424690218,1781052645000,-1000.0,0.00020469,2]
[424690276,1781052645000,-500.0,0.00020547,2]
[424690278,1781052645000,-500.0,0.00020547,2]
[424690275,1781052645000,-518.06,0.00020547,2]
[424690280,1781052645000,-533.85,0.00020547,2]
[424690298,1781052645000,-651.02,0.00020547,2]
[424690296,1781052645000,-500.0,0.00020547,2]
[424690300,1781052645000,-500.0,0.00020547,2]
[424690302,1781052645000,-2671.8,0.00020547,2]
[424690307,1781052645000,-500.0,0.00020547,2]
[424690305,1781052645000,-500.0,0.00020547,2]
[424690303,1781052645000,-589.7,0.00020547,2]
[424690309,1781052645000,-500.0,0.00020547,2]
[424690315,1781052645000,-2717.71,0.00020547,2]
[424690294,1781052645000,-500.0,0.00020547,2]
[424690312,1781052645000,-500.0,0.00020547,2]
[424690318,1781052645000,-500.0,0.00020547,2]
[424690324,1781052645000,-1086.55,0.00020547,2]
[424690327,1781052645000,-500.0,0.00020547,2]
[424690329,1781052645000,-2014.39,0.00020547,2]
[424690336,1781052645000,-500.0,0.00020547,2]
[424690333,1781052645000,-500.0,0.00020547,2]
[424690339,1781052645000,-500.0,0.00020547,2]
[424690342,1781052645000,-500.0,0.00020547,2]
[424690345,1781052645000,-500.0,0.00020547,2]
[424690347,1781052645000,-3786.4,0.00020547,2]
[424690226,1781052645000,-870.84,0.00020538,3]
[424690351,1781052645000,-1669.76,0.00020547,2]
[424690353,1781052645000,-8914.33,0.00020547,2]
[424690320,1781052645000,-592.04,0.00020547,2]
[424690292,1781052645000,-500.0,0.00020547,2]
[424690349,1781052645000,-785.88,0.00020547,2]
[424690284,1781052645000,-500.0,0.00020547,2]
[424690288,1781052645000,-500.0,0.00020547,2]
[424690214,1781052645000,-151.25,0.00020446,2]
[424690220,1781052645000,-156.07,0.00020496,2]
[424690231,1781052645000,-500.0,0.00020547,2]
[424690233,1781052645000,-500.0,0.00020547,2]
[424690230,1781052645000,-329.01085323,0.00020547,2]
[424690235,1781052645000,-500.0,0.00020547,2]
[424690239,1781052645000,-500.0,0.00020547,2]
[424690241,1781052645000,-500.0,0.00020547,2]
[424690237,1781052645000,-1239.06,0.00020547,2]
[424690243,1781052645000,-500.0,0.00020547,2]
[424690246,1781052645000,-500.0,0.00020547,2]
[424690245,1781052645000,-500.0,0.00020547,2]
[424690216,1781052645000,-150.32,0.00020462,2]
[424690248,1781052645000,-500.0,0.00020547,2]
[424690290,1781052645000,-500.0,0.00020547,2]
[424690286,1781052645000,-500.0,0.00020547,2]
[424690282,1781052645000,-500.0,0.00020547,2]
[424690273,1781052645000,-500.0,0.00020547,2]
[424690271,1781052645000,-500.0,0.00020547,2]
[424690250,1781052645000,-500.0,0.00020547,2]
[424690269,1781052645000,-500.0,0.00020547,2]
[424690256,1781052645000,-500.0,0.00020547,2]
[424690260,1781052645000,-937.39,0.00020547,2]
[424690258,1781052645000,-500.0,0.00020547,2]
[424690252,1781052645000,-500.0,0.00020547,2]
[424690254,1781052645000,-500.0,0.00020547,2]
[424690267,1781052645000,-500.0,0.00020547,2]
[424690428,1781052646000,-156.07,0.00020746,2]
[424690436,1781052646000,-500.0,0.00020821,2]
[424690424,1781052646000,-150.32,0.00020712,2]
[424690430,1781052646000,-150.32,0.00020762,2]
[424690420,1781052646000,-150.32,0.00020662,2]
[424690432,1781052646000,-156.07,0.00020796,2]
[424690434,1781052646000,-150.32,0.00020812,2]
[424690417,1781052646000,-156.07,0.00020646,2]
[424690422,1781052646000,-156.07,0.00020696,2]
[424690416,1781052646000,-150.32,0.00020612,2]
[424690437,1781052646000,-500.0,0.00020821,2]
[424690426,1781052646000,-825.0,0.00020736,2]
[424690447,1781052646000,-300.7,0.00020821,2]
[424690441,1781052646000,-1239.06,0.00020821,2]
[424690443,1781052646000,-152.54,0.00020821,2]
[424690445,1781052646000,-500.0,0.00020821,2]
[424690457,1781052646000,-500.0,0.00020821,2]
[424690455,1781052646000,-500.0,0.00020821,2]
[424690449,1781052646000,-500.0,0.00020821,2]
[424690459,1781052646000,-500.0,0.00020821,2]
[424690453,1781052646000,-181.62,0.00020821,2]
[424690451,1781052646000,-500.0,0.00020821,2]
[424690461,1781052646000,-500.0,0.00020821,2]
[424690412,1781052646000,-156.07,0.00020596,2]
[424690463,1781052646000,-937.39,0.00020821,2]
[424690439,1781052646000,-500.0,0.00020821,2]
[424690411,1781052646000,-150.32,0.00020562,2]
[424690382,1781052646000,-1935.77,0.00020547,2]
[424690391,1781052646000,-500.0,0.00020547,2]
[424690465,1781052646000,-500.0,0.00020821,2]
[424690355,1781052646000,-2879.64,0.00020547,2]
[424690357,1781052646000,-500.0,0.00020547,2]
[424690359,1781052646000,-500.0,0.00020547,2]
[424690361,1781052646000,-500.0,0.00020547,2]
[424690363,1781052646000,-2158.62,0.00020547,2]
[424690365,1781052646000,-802.86,0.00020547,2]
[424690367,1781052646000,-500.0,0.00020547,2]
[424690377,1781052646000,-699.54,0.00020547,2]
[424690371,1781052646000,-1513.01,0.00020547,2]
[424690373,1781052646000,-1546.08,0.00020547,2]
[424690374,1781052646000,-2954.84,0.00020547,2]
[424690407,1781052646000,-500.0,0.00020547,2]
[424690369,1781052646000,-500.0,0.00020547,2]
[424690381,1781052646000,-2307.46,0.00020547,2]
[424690393,1781052646000,-5195.56,0.00020547,2]
[424690395,1781052646000,-500.0,0.00020547,2]
[424690401,1781052646000,-1243.13,0.00020547,2]
[424690397,1781052646000,-2279.89,0.00020547,2]
[424690384,1781052646000,-4883.8,0.00020547,2]
[424690386,1781052646000,-381.46152952,0.00020547,2]
[424690399,1781052646000,-500.0,0.00020547,2]
[424690405,1781052646000,-500.0,0.00020547,2]
[424690403,1781052646000,-1498.1,0.00020547,2]
[424690389,1781052646000,-3911.14,0.00020547,2]
[424690409,1781052646000,-664.35,0.00020548,2]
[424690379,1781052646000,-500.0,0.00020547,2]
[424690467,1781052646000,-500.0,0.00020821,2]
[424690574,1781052646000,-2307.46,0.00020821,2]
[424690475,1781052646000,-500.0,0.00020821,2]
[424690539,1781052646000,-500.0,0.00020821,2]
[424690518,1781052646000,-2014.39,0.00020821,2]
[424690529,1781052646000,-3786.4,0.00020821,2]
[424690533,1781052646000,-1669.76,0.00020821,2]
[424690542,1781052646000,-500.0,0.00020821,2]
[424690543,1781052646000,-500.0,0.00020821,2]
[424690535,1781052646000,-8914.33,0.00020821,2]
[424690548,1781052646000,-802.86,0.00020821,2]
[424690546,1781052646000,-2158.62,0.00020821,2]
[424690552,1781052646000,-500.0,0.00020821,2]
[424690555,1781052646000,-500.0,0.00020821,2]
[424690559,1781052646000,-1513.01,0.00020821,2]
[424690531,1781052646000,-785.88,0.00020821,2]
[424690562,1781052646000,-1546.08,0.00020821,2]
[424690582,1781052646000,-3911.14,0.00020821,2]
[424690568,1781052646000,-699.54,0.00020821,2]
[424690565,1781052646000,-2954.84,0.00020821,2]
[424690576,1781052646000,-1935.77,0.00020821,2]
[424690579,1781052646000,-4883.8,0.00020821,2]
[424690587,1781052646000,-5195.56,0.00020821,2]
[424690592,1781052646000,-2279.89,0.00020821,2]
[424690584,1781052646000,-500.0,0.00020821,2]
[424690599,1781052646000,-1498.1,0.00020821,2]
[424690471,1781052646000,-500.0,0.00020821,2]
[424690589,1781052646000,-500.0,0.00020821,2]
[424690594,1781052646000,-500.0,0.00020821,2]
[424690571,1781052646000,-500.0,0.00020821,2]
[424690537,1781052646000,-2879.64,0.00020821,2]
[424690597,1781052646000,-1243.13,0.00020821,2]
[424690525,1781052646000,-500.0,0.00020821,2]
[424690527,1781052646000,-500.0,0.00020821,2]
[424690469,1781052646000,-500.0,0.00020821,2]
[424690485,1781052646000,-500.0,0.00020821,2]
[424690488,1781052646000,-500.0,0.00020821,2]
[424690477,1781052646000,-500.0,0.00020821,2]
[424690481,1781052646000,-500.0,0.00020821,2]
[424690483,1781052646000,-500.0,0.00020821,2]
[424690487,1781052646000,-500.0,0.00020821,2]
[424690478,1781052646000,-533.85,0.00020821,2]
[424690494,1781052646000,-500.0,0.00020821,2]
[424690490,1781052646000,-500.0,0.00020821,2]
[424690492,1781052646000,-500.0,0.00020821,2]
[424690496,1781052646000,-651.02,0.00020821,2]
[424690473,1781052646000,-518.06,0.00020821,2]
[424690500,1781052646000,-2671.8,0.00020821,2]
[424690498,1781052646000,-500.0,0.00020821,2]
[424690522,1781052646000,-500.0,0.00020821,2]
[424690520,1781052646000,-500.0,0.00020821,2]
[424690508,1781052646000,-500.0,0.00020821,2]
[424690506,1781052646000,-500.0,0.00020821,2]
[424690504,1781052646000,-500.0,0.00020821,2]
[424690524,1781052646000,-500.0,0.00020821,2]
[424690516,1781052646000,-1086.55,0.00020821,2]
[424690514,1781052646000,-592.04,0.00020821,2]
[424690512,1781052646000,-500.0,0.00020821,2]
[424690510,1781052646000,-2717.71,0.00020821,2]
[424690502,1781052646000,-589.7,0.00020821,2]
[424690665,1781052647000,-500.0,0.00021095,2]
[424690685,1781052647000,-533.85,0.00021095,2]
[424690672,1781052647000,-500.0,0.00021095,2]
[424690667,1781052647000,-1239.06,0.00021095,2]
[424690668,1781052647000,-500.0,0.00021095,2]
[424690673,1781052647000,-500.0,0.00021095,2]
[424690666,1781052647000,-500.0,0.00021095,2]
[424690671,1781052647000,-500.0,0.00021095,2]
[424690669,1781052647000,-500.0,0.00021095,2]
[424690670,1781052647000,-500.0,0.00021095,2]
[424690664,1781052647000,-500.0,0.00021095,2]
[424690678,1781052647000,-500.0,0.00021095,2]
[424690675,1781052647000,-937.39,0.00021095,2]
[424690687,1781052647000,-326.71,0.00021095,2]
[424690674,1781052647000,-522.91646158,0.00021095,2]
[424690677,1781052647000,-500.0,0.00021095,2]
[424690679,1781052647000,-500.0,0.00021095,2]
[424690681,1781052647000,-500.0,0.00021095,2]
[424690683,1781052647000,-500.0,0.00021095,2]
[424690680,1781052647000,-518.06,0.00021095,2]
[424690676,1781052647000,-500.0,0.00021095,2]
[424690702,1781052647000,-651.02,0.00021095,2]
[424690663,1781052647000,-3000.0,0.0002109,2]
[424690691,1781052647000,-500.0,0.00021095,2]
[424690689,1781052647000,-500.0,0.00021095,2]
[424690662,1781052647000,-3000.0,0.0002108,2]
[424690632,1781052647000,-280.81941589,0.00021,2]
[424690657,1781052647000,-3000.0,0.0002106,2]
[424690704,1781052647000,-500.0,0.00021095,2]
[424690602,1781052647000,-500.0,0.00020821,2]
[424690604,1781052647000,-500.0,0.00020821,2]
[424690606,1781052647000,-664.35,0.00020822,2]
[424690608,1781052647000,-156.07,0.00020846,2]
[424690613,1781052647000,-156.07,0.00020896,2]
[424690611,1781052647000,-150.32,0.00020862,2]
[424690615,1781052647000,-259.61345454,0.000209,2]
[424690617,1781052647000,-150.32,0.00020912,2]
[424690620,1781052647000,-506.28891751,0.00020929,2]
[424690625,1781052647000,-150.32,0.00020962,2]
[424690661,1781052647000,-3000.0,0.0002107,2]
[424690622,1781052647000,-156.07,0.00020946,2]
[424690630,1781052647000,-156.07,0.00020996,2]
[424690635,1781052647000,-3000.0,0.00021,2]
[424690637,1781052647000,-150.0,0.00021,2]
[424690640,1781052647000,-3000.0,0.0002101,2]
[424690643,1781052647000,-150.32,0.00021012,2]
[424690646,1781052647000,-3000.0,0.0002102,2]
[424690650,1781052647000,-3000.0,0.0002104,2]
[424690652,1781052647000,-156.07,0.00021046,2]
[424690654,1781052647000,-3000.0,0.0002105,2]
[424690659,1781052647000,-150.32,0.00021062,2]
[424690648,1781052647000,-3000.0,0.0002103,2]
[424690627,1781052647000,-221.0214,0.00020965,2]
[424690694,1781052647000,-500.0,0.00021095,2]
[424690692,1781052647000,-500.0,0.00021095,2]
[424690696,1781052647000,-500.0,0.00021095,2]
[424690761,1781052647000,-699.54,0.00021095,2]
[424690750,1781052647000,-802.86,0.00021095,2]
[424690756,1781052647000,-1513.01,0.00021095,2]
[424690752,1781052647000,-376.85207406,0.00021095,2]
[424690763,1781052647000,-500.0,0.00021095,2]
[424690767,1781052647000,-1935.77,0.00021095,2]
[424690765,1781052647000,-2307.46,0.00021095,2]
[424690769,1781052647000,-4883.8,0.00021095,2]
[424690771,1781052647000,-3911.14,0.00021095,2]
[424690773,1781052647000,-500.0,0.00021095,2]
[424690775,1781052647000,-5195.56,0.00021095,2]
[424690754,1781052647000,-500.0,0.00021095,2]
[424690777,1781052647000,-500.0,0.00021095,2]
[424690782,1781052647000,-1498.1,0.00021095,2]
[424690786,1781052647000,-500.0,0.00021095,2]
[424690780,1781052647000,-500.0,0.00021095,2]
[424690791,1781052647000,-664.35,0.00021096,2]
[424690793,1781052647000,-3000.0,0.000211,2]
[424690797,1781052647000,-150.32,0.00021112,2]
[424690790,1781052647000,-156.07,0.00021096,2]
[424690795,1781052647000,-3000.0,0.0002111,2]
[424690799,1781052647000,-3000.0,0.0002112,2]
[424690788,1781052647000,-500.0,0.00021095,2]
[424690699,1781052647000,-500.0,0.00021095,2]
[424690784,1781052647000,-1243.13,0.00021095,2]
[424690760,1781052647000,-2954.84,0.00021095,2]
[424690779,1781052647000,-2279.89,0.00021095,2]
[424690749,1781052647000,-2158.62,0.00021095,2]
[424690744,1781052647000,-500.0,0.00021095,2]
[424690706,1781052647000,-2671.8,0.00021095,2]
[424690801,1781052647000,-443.84675067,0.00021122,7]
[424690712,1781052647000,-500.0,0.00021095,2]
[424690708,1781052647000,-589.7,0.00021095,2]
[424690700,1781052647000,-500.0,0.00021095,2]
[424690713,1781052647000,-500.0,0.00021095,2]
[424690725,1781052647000,-500.0,0.00021095,2]
[424690723,1781052647000,-2014.39,0.00021095,2]
[424690726,1781052647000,-500.0,0.00021095,2]
[424690728,1781052647000,-500.0,0.00021095,2]
[424690717,1781052647000,-500.0,0.00021095,2]
[424690710,1781052647000,-500.0,0.00021095,2]
[424690715,1781052647000,-2717.71,0.00021095,2]
[424690746,1781052647000,-500.0,0.00021095,2]
[424690730,1781052647000,-238.47188354,0.00021095,2]
[424690739,1781052647000,-8914.33,0.00021095,2]
[424690758,1781052647000,-1546.08,0.00021095,2]
[424690743,1781052647000,-500.0,0.00021095,2]
[424690734,1781052647000,-3786.4,0.00021095,2]
[424690741,1781052647000,-2879.64,0.00021095,2]
[424690735,1781052647000,-785.88,0.00021095,2]
[424690737,1781052647000,-1669.76,0.00021095,2]
[424690732,1781052647000,-500.0,0.00021095,2]
[424690721,1781052647000,-1086.55,0.00021095,2]
[424690719,1781052647000,-592.04,0.00021095,2]
[424690848,1781052648000,-3000.0,0.0002126,2]
[424690840,1781052648000,-3000.0,0.0002123,2]
[424690838,1781052648000,-3000.0,0.0002122,2]
[424690844,1781052648000,-156.07,0.00021246,2]
[424690846,1781052648000,-3000.0,0.0002125,2]
[424690842,1781052648000,-3000.0,0.0002124,2]
[424690850,1781052648000,-150.32,0.00021262,2]
[424690861,1781052648000,-3000.0,0.0002131,2]
[424690857,1781052648000,-156.07,0.00021296,2]
[424690856,1781052648000,-3000.0,0.0002129,2]
[424690854,1781052648000,-3000.0,0.0002128,2]
[424690865,1781052648000,-3000.0,0.0002132,2]
[424690836,1781052648000,-150.32,0.00021212,2]
[424690863,1781052648000,-150.32,0.00021312,2]
[424690852,1781052648000,-3000.0,0.0002127,2]
[424690834,1781052648000,-3000.0,0.0002121,2]
[424690805,1781052648000,-3000.0,0.0002113,2]
[424690817,1781052648000,-3000.0,0.0002116,2]
[424690867,1781052648000,-3000.0,0.0002133,2]
[424690804,1781052648000,-264.69741541,0.00021122,7]
[424690811,1781052648000,-156.07,0.00021146,2]
[424690807,1781052648000,-3000.0,0.0002114,2]
[424690809,1781052648000,-415.75771614,0.0002114,7]
[424690813,1781052648000,-3000.0,0.0002115,2]
[424690815,1781052648000,-343.00013743,0.00021151,7]
[424690825,1781052648000,-3000.0,0.0002118,2]
[424690827,1781052648000,-3000.0,0.0002119,2]
[424690828,1781052648000,-260.6724209,0.00021196,2]
[424690830,1781052648000,-156.07,0.00021196,2]
[424690819,1781052648000,-150.32,0.00021162,2]
[424690832,1781052648000,-3000.0,0.000212,2]
[424690821,1781052648000,-502.56524765,0.00021162,2]
[424690823,1781052648000,-3000.0,0.0002117,2]
[424690869,1781052648000,-3000.0,0.0002134,2]
[424690859,1781052648000,-3000.0,0.000213,2]
[424690875,1781052648000,-3000.0,0.0002136,2]
[424690913,1781052648000,-500.0,0.00021369,2]
[424690906,1781052648000,-518.06,0.00021369,2]
[424690917,1781052648000,-500.0,0.00021369,2]
[424690919,1781052648000,-500.0,0.00021369,2]
[424690921,1781052648000,-5.90954695,0.00021369,2]
[424690915,1781052648000,-500.0,0.00021369,2]
[424690911,1781052648000,-533.85,0.00021369,2]
[424690959,1781052648000,-792.96020671,0.00019178,2]
[424690975,1781052648000,-217.71,0.00019442,3]
[424690979,1781052648000,-500.0,0.00019452,2]
[424690971,1781052648000,-2254.53979329,0.00019178,2]
[424690973,1781052648000,-500.0,0.00019178,2]
[424690982,1781052648000,-257.75020673,0.00019561,2]
[424690871,1781052648000,-156.07,0.00021346,2]
[424690977,1781052648000,-3047.5,0.00019452,2]
[424690900,1781052648000,-526.87,0.00021369,2]
[424690904,1781052648000,-500.0,0.00021369,2]
[424690909,1781052648000,-500.0,0.00021369,2]
[424690883,1781052648000,-500.0,0.00021369,2]
[424690873,1781052648000,-3000.0,0.0002135,2]
[424690885,1781052648000,-1239.06,0.00021369,2]
[424690879,1781052648000,-500.0,0.00021369,2]
[424690877,1781052648000,-150.32,0.00021362,2]
[424690881,1781052648000,-500.0,0.00021369,2]
[424690907,1781052648000,-500.0,0.00021369,2]
[424690886,1781052648000,-500.0,0.00021369,2]
[424690981,1781052648000,-1000.0,0.000195,2]
[424690894,1781052648000,-500.0,0.00021369,2]
[424690896,1781052648000,-937.39,0.00021369,2]
[424690892,1781052648000,-500.0,0.00021369,2]
[424690890,1781052648000,-500.0,0.00021369,2]
[424690902,1781052648000,-500.0,0.00021369,2]
[424690898,1781052648000,-500.0,0.00021369,2]
[424690888,1781052648000,-500.0,0.00021369,2]
[424691054,1781053832000,-953.98261119,0.00013504,2]
[424691050,1781053832000,-511.2604984,0.00013369,2]
[424691052,1781053832000,-4488.7395016,0.00013369,2]
[424691061,1781053832000,-180.0,0.00014932,3]
[424691062,1781053832000,-389.116101,0.00016936,2]
[424691066,1781053832000,-1000.0,0.00017194,2]
[424691067,1781053832000,-58.75206698,0.000172,2]
[424691059,1781053832000,-762.13183197,0.00013504,2]
[424691064,1781053832000,-1000.0,0.00017,2]
[424691127,1781053839000,-500.0,0.00019178,2]
[424691153,1781053839000,-951.18,0.00019178,2]
[424691128,1781053839000,-545.31614392,0.00019178,2]
[424691129,1781053839000,-500.0,0.00019178,2]
[424691134,1781053839000,-500.0,0.00019178,2]
[424691140,1781053839000,-500.0,0.00019178,2]
[424691131,1781053839000,-500.0,0.00019178,2]
[424691130,1781053839000,-500.0,0.00019178,2]
[424691133,1781053839000,-500.0,0.00019178,2]
[424691123,1781053839000,-500.0,0.00019178,2]
[424691135,1781053839000,-500.0,0.00019178,2]
[424691139,1781053839000,-500.0,0.00019178,2]
[424691132,1781053839000,-500.0,0.00019178,2]
[424691137,1781053839000,-500.0,0.00019178,2]
[424691136,1781053839000,-500.0,0.00019178,2]
[424691141,1781053839000,-500.0,0.00019178,2]
[424691142,1781053839000,-500.0,0.00019178,2]
[424691145,1781053839000,-577.19,0.00019178,2]
[424691146,1781053839000,-500.0,0.00019178,2]
[424691143,1781053839000,-500.0,0.00019178,2]
[424691147,1781053839000,-500.0,0.00019178,2]
[424691144,1781053839000,-500.0,0.00019178,2]
[424691148,1781053839000,-500.0,0.00019178,2]
[424691151,1781053839000,-500.0,0.00019178,2]
[424691154,1781053839000,-500.0,0.00019178,2]
[424691150,1781053839000,-500.0,0.00019178,2]
[424691126,1781053839000,-500.0,0.00019178,2]
[424691138,1781053839000,-500.0,0.00019178,2]
[424691124,1781053839000,-479.30489911,0.00019178,2]
[424691104,1781053839000,-186.0,0.00018042,2]
[424691122,1781053839000,-500.0,0.00019178,2]
[424691149,1781053839000,-500.0,0.00019178,2]
[424691094,1781053839000,-97.24793302,0.000172,2]
[424691095,1781053839000,-160.0,0.00017491,2]
[424691096,1781053839000,-160.0,0.00017491,2]
[424691097,1781053839000,-417.15472785,0.00017491,2]
[424691098,1781053839000,-160.0,0.00017491,2]
[424691099,1781053839000,-169.05532389,0.000175,2]
[424691100,1781053839000,-169.05532389,0.000177,2]
[424691101,1781053839000,-169.05532389,0.000178,2]
[424691102,1781053839000,-768.72334842,0.00017998,2]
[424691107,1781053839000,-500.0,0.00018399,2]
[424691106,1781053839000,-595.52855498,0.00018399,2]
[424691103,1781053839000,-169.05532389,0.00018,2]
[424691125,1781053839000,-500.0,0.00019178,2]
[424691105,1781053839000,-169.05532389,0.000182,2]
[424691109,1781053839000,-221.0214,0.00018771,2]
[424691111,1781053839000,-825.0,0.00018998,2]
[424691114,1781053839000,-500.0,0.00019177,2]
[424691113,1781053839000,-775.83623478,0.00019078,2]
[424691112,1781053839000,-167.467,0.00019078,2]
[424691110,1781053839000,-294.52,0.00018904,2]
[424691115,1781053839000,-500.0,0.00019177,2]
[424691119,1781053839000,-500.0,0.00019177,2]
[424691117,1781053839000,-500.0,0.00019177,2]
[424691116,1781053839000,-500.0,0.00019177,2]
[424691118,1781053839000,-167.52955945,0.00019177,2]
[424691121,1781053839000,-500.0,0.00019177,2]
[424691120,1781053839000,-500.0,0.00019177,2]
[424691108,1781053839000,-294.52,0.0001863,2]
[424691152,1781053839000,-500.0,0.00019178,2]
[424691195,1781053839000,-500.0,0.00019178,2]
[424691160,1781053839000,-500.0,0.00019178,2]
[424691189,1781053839000,-500.0,0.00019178,2]
[424691190,1781053839000,-500.0,0.00019178,2]
[424691196,1781053839000,-500.0,0.00019178,2]
[424691193,1781053839000,-500.0,0.00019178,2]
[424691191,1781053839000,-500.0,0.00019178,2]
[424691194,1781053839000,-500.0,0.00019178,2]
[424691192,1781053839000,-500.0,0.00019178,2]
[424691197,1781053839000,-526.43304465,0.00019178,2]
[424691198,1781053839000,-500.0,0.00019178,2]
[424691202,1781053839000,-500.0,0.00019178,2]
[424691200,1781053839000,-500.0,0.00019178,2]
[424691201,1781053839000,-500.0,0.00019178,2]
[424691204,1781053839000,-500.0,0.00019178,2]
[424691203,1781053839000,-500.0,0.00019178,2]
[424691207,1781053839000,-525.16,0.00019178,2]
[424691205,1781053839000,-500.0,0.00019178,2]
[424691206,1781053839000,-500.0,0.00019178,2]
[424691209,1781053839000,-500.0,0.00019178,2]
[424691208,1781053839000,-500.0,0.00019178,2]
[424691210,1781053839000,-500.0,0.00019178,2]
[424691211,1781053839000,-500.0,0.00019178,2]
[424691214,1781053839000,-500.0,0.00019178,2]